Cogmind - Beta 13 @@@ ROGUE MODE // 2024.04.07 @ 15:16:03 Player: Cherman0 Result: Destroyed by WR-S8L(R) with Subdweller Shrapnel Launcher Performance ------------- Evolutions (0) 0 Regions Visited (3) 600 Robots Destroyed (22) 110 Value Destroyed (424) 424 Prototype IDs (4) 80 Alien Tech Used (0) 0 Bonus (0) 0 TOTAL SCORE: 1214 Bonus ------- None Cogmind --------- Core Integrity 0/250 Matter 267/300 Energy 233/250 System Corruption 5% Temperature Cool (0) Movement Treading (240) Ox1 Location -10/Subcaves Parts ------- > --- POWER (1) -------- Ion Engine > --- PROPULSION (2) --- Light Treads > --- UTILITY (2) ------ Large Storage Unit Structural Scanner > --- WEAPON (2) ------- Heavy EM Pulse Gun Rocket Launcher > --- INVENTORY (15) --- Ion Engine Ion Engine Ion Engine Ion Engine Light Treads Light Treads Hacking Suite Heavy EM Pulse Gun Heavy EM Pulse Gun Datajack Mining Laser Peak State ------------ > --- POWER ------------ Ion Engine > --- PROPULSION ------- Light Treads Light Treads > --- UTILITY ---------- Large Storage Unit Seismic Detector > --- WEAPON ----------- Heavy EM Pulse Gun Rocket Launcher > --- INVENTORY -------- Ion Engine Ion Engine Ion Engine Light Treads Light Treads Medium Storage Unit Structural Scanner Hacking Suite Heavy EM Pulse Gun Heavy EM Pulse Gun Heavy EM Pulse Gun Rocket Launcher Rocket Launcher Rocket Launcher [Rating: 11] Favorites ----------- Power Ion Engine Engine Ion Engine Propulsion Light Treads Treads Light Treads Utility Large Storage Unit Device Seismic Detector Storage Large Storage Unit Weapon Heavy EM Pulse Gun Energy Gun Heavy EM Pulse Gun Ballistic Gun Assault Rifle Launcher Rocket Launcher Build | -11 -10 -10 -10 ------- Run | Yrd Mat Min Sub Slots Evolved . | . . . . Power . | . . . . Propulsion . | . . . . Utility . | . . . . Weapon . | . . . . Parts Attached 26 | 6 14 5 1 Power 3 | . 2 1 . Engine 3 | . 2 1 . Core . | . . . . Reactor . | . . . . Propulsion 6 | 2 4 . . Treads 6 | 2 4 . . Leg . | . . . . Wheel . | . . . . Hover . | . . . . Flight . | . . . . Utility 7 | 2 4 1 . Device 4 | 1 2 1 . Storage 3 | 1 2 . . Processor . | . . . . Hackware . | . . . . Protection . | . . . . Artifact . | . . . . Weapon 10 | 2 4 3 1 Energy Gun 3 | 1 1 1 . Energy Cannon . | . . . . Ballistic Gun 1 | 1 . . . Ballistic Cannon . | . . . . Launcher 6 | . 3 2 1 Special Weapon . | . . . . Impact Weapon . | . . . . Slashing Weapon . | . . . . Piercing Weapon . | . . . . Special Melee Weapon . | . . . . Unidentified Prototypes . | . . . . Parts Lost 7 | . 1 4 2 Power . | . . . . Propulsion 1 | . . . 1 Utility 2 | . 1 1 . Weapon 4 | . . 3 1 Highest Loss Streak 4 | . 1 4 2 To Critical Strikes . | . . . . Average Slot Usage (%) 96 | . 96 97 100 Engine 13 | . 13 14 14 Treads 28 | . 28 28 28 Device 11 | . 11 11 14 Storage 14 | . 14 14 14 Energy Gun 13 | . 14 13 14 Ballistic Gun 1 | . 2 . . Launcher 11 | . 11 13 14 Naked Turns . | . . . . Heaviest Build 33 | 10 33 33 33 Greatest Support 40 | 40 40 40 40 Greatest Overweight (x) . | . . . . Average Overweight (x) . | . . . . Largest Inventory Capacity 15 | 8 15 15 15 Average Capacity 13 | 7 13 15 15 Most Carried 15 | 3 15 15 12 Average Carried 10 | 2 10 11 11 Final Capacity 15 | 8 15 15 15 Final Carried 15 | 3 15 12 11 Class Distribution -------------------- 100% | Mutant Dominant Class ---------------- Mutant | -10/Materials Mutant | -10/Mines Mutant | -10/Subcaves Resources | -11 -10 -10 -10 ----------- Run | Yrd Mat Min Sub Matter Collected 748 | 249 303 196 . Remotely . | . . . . Salvage Created 644 | 37 474 113 20 Parts 44 | 6 36 1 1 Haulers Intercepted 2 | . 2 . . Recyclers Shooed . | . . . . Parts Field Recycled . | . . . . Retrieved Matter . | . . . . Parts Self-Destructed . | . . . . Prevented . | . . . . Kills | -11 -10 -10 -10 ------- Run | Yrd Mat Min Sub Combat Hostiles Destroyed 30 | . 12 17 1 Guns 16 | . 9 7 . AOE 14 | . 3 10 1 Classes Destroyed 9 | 1 5 2 1 Builder 1 | . . 1 . Tunneler 2 | 2 . . . Hauler 2 | . 2 . . Operator 1 | . 1 . . Watcher 3 | . 3 . . Swarmer 6 | . 6 . . Grunt 6 | . 6 . . Subdweller 1 | . . . 1 Assembled 17 | . . 17 . Best Kill Streak 11 | 1 3 11 1 Combat Bots Only 11 | . 3 11 1 Max Kills in Single Turn 2 | 1 2 2 1 Gunslinging . | . . . . Exploded 2 | . 2 2 1 Melee . | . . . . Uniques/NPCs Destroyed . | . . . . Combat | -11 -10 -10 -10 -------- Run | Yrd Mat Min Sub Hostile Shots Fired 126 | . 67 53 6 Missed 44 | . 25 18 1 Damage Taken 1260 | . 498 540 222 Core 252 | . 67 63 122 Absorbed by Shields . | . . . . Regen/Repaired (Parts) 28 | . 28 . . Core Remaining (%) 100 | 100 . . . Volleys Fired 117 | 6 63 42 6 Largest 2 | 2 2 1 1 Hottest 80 | 70 80 45 45 Shots Fired 145 | 12 86 41 6 Gun 124 | 12 79 30 3 Cannon . | . . . . Launcher 21 | . 7 11 3 Special . | . . . . Kinetic 28 | 6 22 . . Thermal 51 | 6 45 . . Explosive 21 | . 7 11 3 Electromagnetic 45 | . 12 30 3 Robot Hit Streak 7 | 3 7 6 4 Robot Miss Streak 5 | 2 5 3 1 Penetration Max . | . . . . Secondary Targets . | . . . . Shots Hit Robots 86 | 8 49 25 4 Core Hits 63 | 2 24 35 2 Critical Kills . | . . . . Critical Parts Destroyed . | . . . . Critical Strikes 2 | . 2 . . Burn 2 | . 2 . . Melee Attacks . | . . . . Impact . | . . . . Slashing . | . . . . Piercing . | . . . . Sneak Attacks . | . . . . Combat Hostiles . | . . . . Follow-up Attacks . | . . . . Damage Inflicted 2460 | 97 942 1191 230 Guns 1074 | 97 674 276 27 Cannons . | . . . . Explosions 1386 | . 268 915 203 Melee . | . . . . Ramming . | . . . . Kinetic 263 | 48 215 . . Thermal 394 | 49 345 . . Explosive 1386 | . 268 915 203 Electromagnetic 417 | . 114 276 27 Impact . | . . . . Slashing . | . . . . Piercing . | . . . . Highest Corruption 5 | . . 5 5 Average Corruption 5 | . . 5 5 Corruption Purged . | . . . . Corruption Blocked . | . . . . Effects 17 | . . 17 . Message Errors 3 | . . 3 . Matter Fused 5 | . . 5 . Heat Flow Errors 1 | . . 1 . Energy Discharges 1 | . . 1 . Data Loss (minor) 3 | . . 3 . Data Loss (major) 3 | . . 3 . Weapon Failures 1 | . . 1 . Overload Shots . | . . . . Overflow Damage 9 | . . 9 . Projectiles . | . . . . Explosions 9 | . . 9 . Melee . | . . . . Knockbacks . | . . . . Impact . | . . . . Kinetic . | . . . . Secondary . | . . . . Self-Inflicted Damage 32 | . 32 . . Shots 1 | . 1 . . Rammed . | . . . . Targets Rammed . | . . . . Kicked . | . . . . Crushed . | . . . . Highest Temperature 255 | . 88 255 . Average Temperature 29 | . 26 34 . Received Heat Transfer 245 | . 165 80 . Siege Activations . | . . . . Robots Corrupted . | . . . . Combat Hostiles . | . . . . Parts Fried . | . . . . Impact Corruptions . | . . . . Robots Melted . | . . . . Combat Hostiles . | . . . . Parts Melted 2 | . 2 . . Heat Transferred 1332 | 148 1184 . . Parts Sabotaged . | . . . . Parts Stolen . | . . . . Parts Stripped . | . . . . Power Chain Reactions . | . . . . Alert | -11 -10 -10 -10 ------- Run | Yrd Mat Min Sub Peak Influence 182 | 10 182 70 . Initial 45 | . 6 45 . Average 74 | 4 92 39 . Maximum Alert Level . | . . . . Low Security (%) 100 | 100 100 100 . Level 1 . | . . . . Level 2 . | . . . . Level 3 . | . . . . Level 4 . | . . . . Level 5 . | . . . . High Security . | . . . . Max Security . | . . . . Squads Dispatched 4 | . 4 . . Investigation 3 | . 3 . . Extermination . | . . . . Reinforcement 1 | . 1 . . Assault . | . . . . Garrison . | . . . . Intercept . | . . . . Searches Triggered . | . . . . Construction Impeded . | . . . . Haulers Reinforced . | . . . . Active Scanning Responses . | . . . . Cargo Convoy Interrupts . | . . . . Stealth | -11 -10 -10 -10 --------- Run | Yrd Mat Min Sub Distress Signals 2 | . 1 1 . Communications Jammed . | . . . . Distress Signals . | . . . . Times Spotted 45 | . 23 20 2 Peak Tracking Total 10 | . 4 10 2 Tactical Retreats 5 | . 1 4 . Traps | -11 -10 -10 -10 ------- Run | Yrd Mat Min Sub Traps Triggered 1 | . 1 . . Indirectly . | . . . . Trap Hack Attempts . | . . . . Triggered . | . . . . Disarmed . | . . . . Reprogrammed . | . . . . Reused . | . . . . Traps Extracted . | . . . . Installed . | . . . . Triggered . | . . . . Machines | -11 -10 -10 -10 ---------- Run | Yrd Mat Min Sub Machines Disabled 2 | . 1 1 . Max in Single Turn 1 | . 1 1 . Machines Repaired . | . . . . Machines Dismantled . | . . . . Machines Sabotaged . | . . . . Overloaded Fab Kills . | . . . . Hacking | -11 -10 -10 -10 --------- Run | Yrd Mat Min Sub Machines Accessed 8 | . 8 . . Terminals 5 | . 5 . . Fabricators . | . . . . Repair Stations 1 | . 1 . . Recycling Units 2 | . 2 . . Scanalyzers . | . . . . Garrison Access . | . . . . Total Hacks 24 | . 24 . . Successful 15 | . 15 . . Failed 9 | . 9 . . Catastrophic 2 | . 2 . . Database Lockouts . | . . . . Manual 6 | . 6 . . Terminals 18 | . 18 . . Fabricators . | . . . . Repair Stations 3 | . 3 . . Recycling Units 3 | . 3 . . Scanalyzers . | . . . . Garrison Access . | . . . . Terminal Hacks 11 | . 11 . . Prototype ID Bank 2 | . 2 . . Branch Access Points 1 | . 1 . . Emergency Access Points 1 | . 1 . . Locate Traps 2 | . 2 . . Maintenance Status 1 | . 1 . . Security Status 1 | . 1 . . Hauler Manifests 1 | . 1 . . Registered Components 1 | . 1 . . Zone Layout 1 | . 1 . . Fabricator Hacks . | . . . . Repair Station Hacks 2 | . 2 . . Scan Component 1 | . 1 . . Repair 1 | . 1 . . Recycling Unit Hacks . | . . . . Scanalyzer . | . . . . Garrison Access Hacks . | . . . . Unauthorized Hacks 2 | . 2 . . Terminals . | . . . . Fabricators . | . . . . Repair Stations . | . . . . Recycling Units 2 | . 2 . . Tunnel 2 | . 2 . . Scanalyzers . | . . . . Garrison Access . | . . . . Data Cores Recovered . | . . . . Used . | . . . . Hacking Detections 5 | . 5 . . Full Trace Events 2 | . 2 . . Feedback Events . | . . . . Feedback Blocked . | . . . . Robot Schematics Acquired . | . . . . Robots Built . | . . . . Authchips . | . . . . Time . | . . . . Total Robot Build Rating . | . . . . Part Schematics Acquired . | . . . . Parts Built . | . . . . Authchips . | . . . . Time . | . . . . Total Part Build Rating . | . . . . Parts Repaired 1 | . 1 . . Time 32 | . 32 . . Parts Recycled . | . . . . Recycled Matter . | . . . . Retrieved Matter . | . . . . Retrieved Components . | . . . . Parts Scanalyzed . | . . . . Part Schematics Acquired . | . . . . Parts Damaged . | . . . . Bothacking | -11 -10 -10 -10 ------------ Run | Yrd Mat Min Sub Used RIF Installer . | . . . . Robots Hacked . | . . . . Non-combat . | . . . . Combat . | . . . . Robot Hacks Applied . | . . . . Relay Couplers Released . | . . . . Fabnet Peak Effective % . | . . . . Robots Rewired . | . . . . Allies Hacked . | . . . . Hacks Repelled . | . . . . Allies | -11 -10 -10 -10 -------- Run | Yrd Mat Min Sub Total Allies . | . . . . Largest Group . | . . . . Highest-Rated Group . | . . . . Highest-Rated Ally . | . . . . Total Orders . | . . . . Ally Attacks . | . . . . Total Damage . | . . . . Kills . | . . . . Allies Corrupted . | . . . . Allies Melted . | . . . . Intel | -11 -10 -10 -10 ------- Run | Yrd Mat Min Sub Robot Analysis Total . | . . . . Derelict Logs Recovered 1 | . . 1 . Drone Launches . | . . . . Drone Recoveries . | . . . . Exploration | -11 -10 -10 -10 ------------- Run | Yrd Mat Min Sub Turns Passed 2567 | 142 1777 616 32 Spaces Moved 1360 | 73 946 328 13 Core 3 | 3 . . . Treads 1357 | 70 946 328 13 Legs . | . . . . Wheels . | . . . . Hover . | . . . . Flight . | . . . . Fastest Speed 50 | 50 160 160 160 Average Speed 159 | 155 160 160 160 Slowest Speed 160 | 160 160 160 160 Overloaded Moves . | . . . . Propulsion Burnouts . | . . . . Robots Hopped . | . . . . Cave-ins Triggered . | . . . . Exploration Rate (%) 43 | 4 96 68 4 Regions Visited 3 Branch Regions 2 Pre-discovered Areas 3 | . 2 1 . Known Exits Taken 1 | . 1 . . Unknown Exits Taken 2 | 1 . 1 . Scrap Searched 1 | . . 1 . Spaces Dug 26 | . 15 11 . Terrain Destroyed 150 | . 63 69 18 Melee . | . . . . Projectile . | . . . . AOE 150 | . 63 69 18 Terrain Rammed . | . . . . Walls Destroyed . | . . . . Machines Disabled . | . . . . Actions | -11 -10 -10 -10 --------- Run | Yrd Mat Min Sub Total 1611 | 87 1127 377 20 Wait 70 | . 67 3 . Move 1357 | 72 945 327 13 Hop . | . . . . Pick Up 23 | 3 20 . . Fast Attach 13 | 6 7 . . Attach 6 | . 1 4 1 Detach . | . . . . Swap 7 | . 6 1 . Drop 18 | . 18 . . Fire 117 | 6 63 42 6 Melee . | . . . . Ram . | . . . . Kick . | . . . . Crush . | . . . . Escape Stasis . | . . . . Rewire . | . . . . Trap . | . . . . Miscellaneous . | . . . . Route ------- -11/Scrapyard -10/Materials (discovered 5 exits: [*Mat x3] / *Min / [*Sub]) -10/Mines (discovered 2 exits: [*Mat] / [*Sub]) -10/Subcaves History --------- Turn | Location | Event 9 | -11/Scrapyard | Discovered new exit (range 16) 143 | -11/Scrapyard | Entered Materials 301 | -10/Materials | Build established: Mutant 314 | -10/Materials | Discovered new exit (range 9) 396 | -10/Materials | Discovered new exit (range 16) 922 | -10/Materials | Discovered new exit (range 16) 941 | -10/Materials | Identified exit to Mines 1058 | -10/Materials | Discovered new exit (range 15) 1374 | -10/Materials | Repaired Rocket Launcher 1792 | -10/Materials | Discovered new exit (range 15) 1920 | -10/Materials | Entered Mines 1921 | -10/Mines | Assembled infested the area 1977 | -10/Mines | Destroyed 11 combat bots 1979 | -10/Mines | Lost 4 parts (1u3w) 2316 | -10/Mines | Core integrity fell below 50% 2390 | -10/Mines | Discovered new exit (range 17) 2413 | -10/Mines | Discovered new exit (range 11) 2536 | -10/Mines | Entered Subcaves 2555 | -10/Subcaves | Ambushed by Subdwellers from Twisted Machinery 2568 | -10/Subcaves | Destroyed by WR-S8L(R) with Subdweller Shrapnel Launcher Last Messages --------------- 02516_ U-05 Engineer lays Concrete. 02517_ K-01 Serf collects debris. 02518_ U-05 Engineer lays Concrete. 02519_ System corrupted: Component data lost. 02519_ U-05 Engineer lays Concrete. 02521_ K-01 Serf collects debris. 02522_ U-05 Engineer lays Concrete. 02523_ U-05 Engineer builds a Wall. 02524_ K-01 Serf collects debris. 02534_ The unstable cave ceiling collapses. 02536_ K-01 Serf collects debris. LOCATION=UNKNOWN AMBIENT_HEAT=-10 GOAL=ESCAPE 02555_ WD-U2R(R) emerges from the Twisted Machinery. 02559_ WD-U2R(R) destroyed. 02560_ Rocket Launcher destroyed. 02562_ WR-S8L(R) affixes Scrap Shield Fragment to Scrap Shield. 02564_ EV-FXO(O) collects matter. 02565_ Lgt. Treads destroyed. Map ----- +----------------------------------------------------+ | ?????????????????????????????????????????????????? | | ?????????????????????????????????????????????????? | | ?????????????????????????????????????????????????? | | ?????????????????????????????????????????????????? | | ?????????????????????????????????????????????????? | | ?????????????????????????????????????????????????? | | ?????????????????????????????????????????????????? | | ?????????????????????????????????????????????????? | | ?????????????????????????????????????????????????? | | ??????????????????????????????????###????????????? | | ??????????????????????????????????#####??????????? | | ?????????????????????????????????? ###??????????? | | ??????????????????????????????????? ##??????????? | | ??????????????????????????????????? ###?????????? | | ??????????????????????????????????? ###?????????? | | ??????????????????????????????????? ##?????????? | | ????????????????????????????????? ##?????????? | | ??????????????? ????## ???????## ## ###?????????? | | ???????????# ##### ???######### ##??????????? | | ???????????### #### ######;##; ##??????????? | | ???????????## " #### ## ###??????????? | | ???????????## " ; ; ; ;##??????????? | | ???????????## ##??????????? | | ???????????## ##??????????? | | ???????????## R ;; ###?????????? | | ??????????### O& @ ;;;;; ;###?????????? | | ??????????## = ## % ##?????????? | | ??????????#### ##?????????? | | ????????????#### # ; # ##?????????? | | ????????????##### ? ;; # # ## ##?????????? | | ??????????????#### #### ## ## ##?????????? | | ????????????????## ###### ### ##?????????? | | ????????????????## ##?# % % % ### ##?????????? | | ????????????????## ?????## ? #####?????????? | | ???????????????? ?????## % ? ####?????????? | | ?????????????? ???????## ## ? #???????????? | | ?????????????? # ???????## ### ? ???????????? | | ??????????????###???????######% % ?? ????????????? | | ????????????????????????#####? ????????????????? | | ??????????????????????????????? ?????????????????? | | ?????????????????????????????????????????????????? | | ?????????????????????????????????????????????????? | | ?????????????????????????????????????????????????? | | ?????????????????????????????????????????????????? | | ?????????????????????????????????????????????????? | | ?????????????????????????????????????????????????? | | ?????????????????????????????????????????????????? | | ?????????????????????????????????????????????????? | | ?????????????????????????????????????????????????? | | ?????????????????????????????????????????????????? | +----------------------------------------------------+ Best States ------------- Heat Dissipation 35 Energy Generation 10 Energy Capacity 250 Matter Stores 300 Matter Capacity 300 Sight Range 16 Terrain Scan Density 10 Evasion (%) 40 Recoil Reduction 2 Item Schematics ----------------- None Robot Schematics ------------------ None Fabricated ------------ Nothing Alien Tech Used ----------------- None Achievements -------------- Brute Force Challenges ------------ None Game ------ Seed ParticleInsulatedCapacitor Manual? 0 Play Time 00:28:51 Cumulative 10.4 hours Start 2024.04.07 @ 14:44:03 End 2024.04.07 @ 15:16:03 Sessions 1 Manual Loads 0 Difficulty Rogue Special Mode None Game No. 8 Rogue 8 Adventurer 0 Explorer 0 Win Type - Total 0 Types 0/0/0/0/0/0/0/0/0 Lore% 16 Gallery% 11 Achievement% 12 Wizard Run 0 Options --------- Layout 0 ASCII 0 Keyboard 0 Movement Numpad Keybinds 0 Fullscreen 1 Font 18/SmallcapsGlow Map View 76x50 Zoom Use 0% Tactical HUD 1 Map Filters NONE Filters NONE Steam 1 RUN: bc842298-2097-4c8f-9c8a-55ebd2fdf4ed